bitfinex-derivatives/quotes_BTCF0:USTF0_20250405
["timestamp","ask_amount","ask_price","bid_price","bid_amount"]
[1743884438983,0.3788663,82982.0,82981.0,0.14342186]
[1743884439287,0.3788663,82982.0,82968.0,0.3608]
[1743884439288,0.0843968,82973.0,82968.0,0.3608]
[1743884439482,0.0843968,82973.0,82972.0,0.01084]
[1743884439678,0.0844009,82969.0,82968.0,8e-05]
[1743884439887,0.0844009,82969.0,82959.0,0.0006027]
[1743884439888,0.08441,82960.0,82959.0,0.0006027]
[1743884440090,0.44521,82960.0,82959.0,0.0512427]
[1743884440280,0.44597,82960.0,82959.0,0.0512427]
[1743884440482,0.53847,82960.0,82959.0,0.0512427]
[1743884441488,0.53847,82960.0,82959.0,0.0622295]
[1743884441890,0.73847,82960.0,82959.0,0.0622295]
[1743884442195,0.73847,82960.0,82959.0,0.0122295]
[1743884442891,0.73847,82960.0,82959.0,0.0115895]
[1743884446594,0.37767,82960.0,82959.0,0.0115895]
[1743884446792,0.73847,82960.0,82959.0,0.0115895]
[1743884448596,0.37767,82960.0,82959.0,0.0115895]
[1743884448793,0.73847,82960.0,82959.0,0.0115895]
[1743884449187,0.73847,82960.0,82959.0,0.0215895]
[1743884449391,0.70727,82960.0,82959.0,0.1060005]
[1743884449692,0.14647,82960.0,82959.0,0.1060005]
[1743884449898,0.14647,82960.0,82959.0,0.1703205]
[1743884450283,0.14647,82960.0,82959.0,0.0859095]
[1743884450889,0.14647,82960.0,82959.0,0.0851895]
[1743884452795,0.14647,82960.0,82959.0,0.0858295]
[1743884453497,0.14647,82960.0,82959.0,0.0520895]
[1743884453693,0.14647,82960.0,82959.0,0.0215895]
[1743884454002,0.14647,82960.0,82959.0,0.0115895]
[1743884454802,0.34647,82960.0,82959.0,0.0115895]
[1743884455303,0.34647,82960.0,82959.0,0.02822478]
[1743884458605,0.34647,82960.0,82959.0,0.0115895]
[1743884459604,0.34647,82960.0,82959.0,0.02822478]
[1743884460900,0.34647,82960.0,82959.0,0.03822478]
[1743884461102,0.34647,82960.0,82959.0,0.0215895]
[1743884461499,0.34647,82960.0,82959.0,0.0540895]
[1743884461899,0.34647,82960.0,82959.0,0.07072478]
[1743884462296,0.45438326,82960.0,82959.0,0.07072478]
[1743884465310,0.81518326,82960.0,82959.0,0.07072478]
[1743884465996,0.70727,82960.0,82959.0,0.07072478]
[1743884472910,0.76588149,82960.0,82959.0,0.07072478]
[1743884476101,0.76588149,82960.0,82959.0,0.06072478]
[1743884478702,0.76588149,82960.0,82959.0,0.07072478]
[1743884481010,0.70458149,82960.0,82959.0,0.07072478]
[1743884481202,0.25937149,82960.0,82959.0,0.15513578]
[1743884481515,0.25937149,82960.0,82959.0,0.18645578]
[1743884481814,0.14378149,82960.0,82959.0,0.18645578]
[1743884482013,0.05937149,82960.0,82959.0,0.18645578]
[1743884482702,0.05861149,82960.0,82959.0,0.18645578]
[1743884483110,0.05937149,82960.0,82959.0,0.18645578]
[1743884483515,0.14378149,82960.0,82959.0,0.18645578]
[1743884483721,0.05937149,82960.0,82959.0,0.18645578]
[1743884484199,0.00076,82960.0,82959.0,0.18645578]
[1743884484804,0.08517,82960.0,82959.0,0.18645578]
[1743884485009,0.00076,82960.0,82959.0,0.18645578]
[1743884485210,0.08517,82960.0,82959.0,0.18645578]
[1743884487314,0.00076,82960.0,82959.0,0.18645578]
[1743884488615,0.10905132,82960.0,82959.0,0.18645578]
[1743884490519,0.10829132,82960.0,82959.0,0.18645578]
[1743884491518,0.10913132,82960.0,82959.0,0.18645578]
[1743884492119,0.042195,82980.0,82959.0,0.18645578]
[1743884492120,0.26500213,82980.0,82979.0,0.0843907]
[1743884492421,0.26572213,82980.0,82979.0,0.7259107]
[1743884492623,0.26572213,82980.0,82979.0,0.8201107]
[1743884493117,0.26572213,82980.0,82979.0,0.83674598]
[1743884496919,0.0851099,82980.0,82979.0,0.83674598]
[1743884497116,0.0843899,82980.0,82979.0,0.83674598]
[1743884498722,0.08456897,82982.0,82981.0,0.0843887]
[1743884498924,0.08456897,82982.0,82981.0,0.3651887]
[1743884499118,0.08456897,82982.0,82981.0,0.4283887]
[1743884499521,0.08532897,82982.0,82981.0,0.44502398]
[1743884499721,0.08456897,82982.0,82981.0,0.44502398]
[1743884500709,0.11566897,82982.0,82981.0,0.44502398]
[1743884508823,0.11642897,82982.0,82981.0,0.44502398]
[1743884510035,0.11642837,82982.0,82981.0,0.44502398]
[1743884510334,0.11566837,82982.0,82981.0,0.44502398]
[1743884513841,0.11566837,82982.0,82981.0,0.49578398]
[1743884518945,0.14796837,82982.0,82981.0,0.49578398]
[1743884519353,0.14876837,82982.0,82981.0,0.29743528]
[1743884519649,0.18196837,82982.0,82981.0,0.38182398]
[1743884520448,0.18196837,82982.0,82981.0,0.29743528]
[1743884520754,0.18196837,82982.0,82981.0,0.38182398]
[1743884522253,0.11646837,82982.0,82981.0,0.41232398]
[1743884522456,0.00018077,82982.0,82981.0,0.47812398]
[1743884523251,0.08456837,82982.0,82981.0,0.47812398]
[1743884523657,0.11466837,82982.0,82981.0,0.47812398]
[1743884524043,0.08456837,82982.0,82981.0,0.47812398]
[1743884527145,0.00018077,82982.0,82981.0,0.47812398]
[1743884527955,0.08456837,82982.0,82981.0,0.47812398]
[1743884531347,0.00018077,82982.0,82981.0,0.47812398]
[1743884531961,0.30718213,82994.0,82993.0,0.0843765]
[1743884532159,0.30786213,82994.0,82993.0,0.3243765]
[1743884532457,0.30786213,82994.0,82993.0,0.3250965]
[1743884532657,0.1272499,82994.0,82993.0,0.3250965]
[1743884533256,0.20044,82994.0,82993.0,0.37493178]
[1743884533750,0.20044,82994.0,82993.0,0.40643178]
[1743884534852,0.23344,82994.0,82993.0,0.40643178]
[1743884538349,0.23344,82994.0,82993.0,0.25735528]
[1743884545762,0.23344,82994.0,82993.0,0.34173178]
[1743884545964,0.23344,82994.0,82993.0,0.37423178]
[1743884547467,0.23344,82994.0,82993.0,0.40703178]
[1743884550458,0.23344,82994.0,82993.0,0.28985528]
[1743884550671,0.06468,82994.0,82986.0,8e-05]
[1743884550964,0.4451826,82987.0,82986.0,1e-07]
[1743884551170,0.0843876,82982.0,82981.0,0.23828957]
[1743884551371,0.0843927,82977.0,82976.0,8e-05]
[1743884551566,0.0843948,82975.0,82968.0,0.3608]
[1743884551771,0.0857148,82975.0,82974.0,0.36092596]
[1743884552071,0.1472148,82975.0,82974.0,0.36092596]
[1743884553061,0.3472148,82975.0,82974.0,0.36092596]
[1743884553462,0.3472148,82975.0,82974.0,0.63092596]
[1743884553671,0.3472148,82975.0,82974.0,0.71532176]
[1743884553967,0.3472148,82975.0,82974.0,0.63092596]
[1743884554763,0.3472148,82975.0,82974.0,0.27068]
[1743884554972,0.1472148,82975.0,82974.0,0.27068]
[1743884557075,0.1472148,82975.0,82974.0,0.30108]
[1743884560480,0.1472148,82975.0,82974.0,0.27068]
[1743884561169,0.3472148,82975.0,82974.0,0.27068]
[1743884561682,0.3472148,82975.0,82974.0,0.00068]
[1743884561881,0.0843968,82973.0,82972.0,0.0308]
[1743884562380,0.1506568,82973.0,82972.0,0.0308]
[1743884562772,0.1506568,82973.0,82972.0,0.04773938]
[1743884563079,0.1182568,82973.0,82972.0,0.16463718]
[1743884563269,0.0857568,82973.0,82972.0,0.18463718]
[1743884569274,0.1157568,82973.0,82972.0,0.10023938]
[1743884571284,0.1157568,82973.0,82972.0,0.21593718]
[1743884571979,0.1157568,82973.0,82972.0,0.13153938]
[1743884572186,0.1157568,82973.0,82972.0,0.21593718]
[1743884572478,0.1157568,82973.0,82972.0,0.13153938]
[1743884572675,0.1477568,82973.0,82972.0,0.03693938]
[1743884573686,0.1477568,82973.0,82972.0,0.01693938]
[1743884573687,0.3477568,82973.0,82972.0,0.01693938]
[1743884573985,0.3477568,82973.0,82972.0,0.04933938]
[1743884576180,0.3477568,82973.0,82972.0,0.01693938]
[1743884577987,0.3477568,82973.0,82972.0,0.02693938]
[1743884579392,0.4918685,82973.0,82972.0,0.02693938]
[1743884579983,0.4918685,82973.0,82972.0,0.05923938]
[1743884580182,0.4918685,82973.0,82972.0,0.14363718]
[1743884580382,0.4918685,82973.0,82972.0,0.05923938]
[1743884580783,0.4918685,82973.0,82972.0,0.09043938]
[1743884582389,0.52836903,82973.0,82972.0,0.09043938]
[1743884585593,0.49636903,82973.0,82972.0,0.09043938]
[1743884585784,0.46636903,82973.0,82972.0,0.17483718]
[1743884585984,0.34435851,82973.0,82972.0,0.17483718]
[1743884586794,0.14435851,82973.0,82972.0,0.17483718]
[1743884589490,0.23027037,82973.0,82972.0,0.17483718]
[1743884594688,0.14587357,82973.0,82972.0,0.17483718]
[1743884594887,0.033,82990.0,82979.0,0.0843907]
[1743884595207,0.0843796,82990.0,82984.0,0.0843856]
[1743884595498,0.0843795,82990.0,82984.0,0.3852256]
[1743884595707,0.0843778,82992.0,82984.0,0.4481256]
[1743884595999,0.3608,82993.0,82984.0,0.47716919]
[1743884596197,0.4451767,82993.0,82984.0,0.47716919]
[1743884596890,0.4451767,82993.0,82984.0,0.46506498]
[1743884597889,0.084378,82992.0,82984.0,0.46506498]
[1743884598695,0.084378,82992.0,82984.0,0.49546498]
[1743884599198,0.0843791,82991.0,82984.0,0.49546498]
[1743884599999,0.0843791,82991.0,82984.0,0.49542498]
[1743884600200,0.0843796,82990.0,82984.0,0.49542498]
[1743884600389,0.0843796,82990.0,82984.0,0.49610498]
[1743884602306,0.0843806,82989.0,82984.0,0.49610498]
[1743884602896,0.0421888,82992.0,82984.0,0.49610498]
[1743884603098,0.0843811,82989.0,82984.0,0.49610498]
[1743884604205,0.08456537,82985.0,82984.0,0.44530498]
[1743884604404,0.08456537,82985.0,82984.0,0.41490498]
[1743884604601,0.08456537,82985.0,82984.0,0.46566498]
[1743884605791,0.00018077,82985.0,82984.0,0.46566498]
[1743884606005,0.08456537,82985.0,82984.0,0.46566498]
[1743884608302,0.08456537,82985.0,82984.0,0.82646498]
[1743884608503,0.00018077,82985.0,82984.0,0.82646498]
[1743884608704,0.08456537,82985.0,82984.0,0.82646498]
[1743884610006,0.11696537,82985.0,82984.0,0.82646498]
[1743884614007,0.14736537,82985.0,82984.0,0.77570498]
[1743884614207,0.14736537,82985.0,82984.0,0.82646498]
[1743884616204,0.03258077,82985.0,82984.0,0.82646498]
[1743884616608,0.0313,82991.0,82990.0,0.0843795]
[1743884616802,0.0313,82991.0,82990.0,0.3150995]
[1743884616998,0.0313,82991.0,82990.0,0.3456995]
[1743884617200,0.0313,82991.0,82990.0,0.36263888]
[1743884617708,0.1156785,82991.0,82990.0,0.41339888]
[1743884617897,0.1461785,82991.0,82990.0,0.44529888]
[1743884618094,0.1468185,82991.0,82990.0,0.44529888]
[1743884625414,0.1468185,82991.0,82990.0,0.41469888]
[1743884625712,0.1468185,82991.0,82990.0,0.24765938]
[1743884626312,0.1468185,82991.0,82990.0,0.33203888]
[1743884631517,0.1468185,82991.0,82990.0,0.36523888]
[1743884632610,0.1461785,82991.0,82990.0,0.36523888]
[1743884633915,0.1461785,82991.0,82990.0,0.33203888]
[1743884634308,0.1468185,82991.0,82990.0,0.33203888]
[1743884635318,0.1468185,82991.0,82990.0,0.36373888]
[1743884635518,0.1461785,82991.0,82990.0,0.36373888]
[1743884636019,0.1468185,82991.0,82990.0,0.36373888]
[1743884636421,0.1461785,82991.0,82990.0,0.36373888]
[1743884641015,0.1461785,82991.0,82990.0,0.24765938]
[1743884641210,0.1468185,82991.0,82990.0,0.24765938]
[1743884644923,0.0850185,82991.0,82990.0,0.36443888]
[1743884645118,0.0850185,82991.0,82990.0,0.39613888]
[1743884647430,0.0850185,82991.0,82990.0,0.44689888]
[1743884647729,0.0850185,82991.0,82990.0,0.39613888]
[1743884647929,0.0850185,82991.0,82990.0,0.44689888]
[1743884648527,0.1173185,82991.0,82990.0,0.44689888]
[1743884649430,0.0850185,82991.0,82990.0,0.44689888]
[1743884649731,0.0843785,82991.0,82990.0,0.44689888]
[1743884649931,0.0850585,82991.0,82990.0,0.44689888]
[1743884650322,0.0843785,82991.0,82990.0,0.44689888]
[1743884650832,0.0421882,82993.0,82992.0,0.0843775]
[1743884650833,0.1265657,82993.0,82992.0,0.0843775]
[1743884651131,0.1272057,82993.0,82992.0,0.3150975]
[1743884651337,0.1272057,82993.0,82992.0,0.3812975]
[1743884651922,0.1272057,82993.0,82992.0,0.39823688]
[1743884652931,0.1272057,82993.0,82992.0,0.41631688]
[1743884655036,0.1272057,82993.0,82992.0,0.33151938]
[1743884655332,0.1272057,82993.0,82992.0,0.28075938]
[1743884655835,0.1600057,82993.0,82992.0,0.28075938]
[1743884656234,0.1600057,82993.0,82992.0,0.36513688]
[1743884656535,0.042186,82998.0,82994.0,0.0421873]
[1743884656729,0.0843733,82997.0,82996.0,0.4451724]
[1743884656928,0.0843733,82997.0,82996.0,0.6858124]
[1743884657124,0.0850933,82997.0,82996.0,0.70275178]
[1743884657532,0.1178933,82997.0,82996.0,0.70275178]
[1743884657934,0.1178933,82997.0,82996.0,0.61837938]
[1743884658236,0.1487933,82997.0,82996.0,0.61837938]
[1743884658636,0.1487933,82997.0,82996.0,0.70275278]
[1743884658843,0.1487933,82997.0,82996.0,0.25757938]
[1743884660122,0.1487933,82997.0,82996.0,0.34195278]
[1743884661639,0.1178933,82997.0,82996.0,0.34195278]
[1743884662741,0.1501933,82997.0,82996.0,0.34195278]
[1743884667644,0.1501933,82997.0,82996.0,0.37435278]
[1743884669039,0.1501933,82997.0,82996.0,0.40505278]
[1743884671144,0.00072,82997.0,82996.0,0.40505278]
[1743884671340,0.18666155,82999.0,82998.0,0.0843714]
[1743884671649,0.18730155,82999.0,82998.0,0.3576114]
[1743884671846,0.18730155,82999.0,82998.0,0.40495078]
[1743884672146,0.18730155,82999.0,82998.0,0.76575078]
[1743884673742,0.18930155,82999.0,82998.0,0.76575078]
[1743884676044,0.0448252,82999.0,82998.0,0.76575078]
[1743884676347,0.00264,82999.0,82998.0,0.76575078]
[1743884676542,0.18665935,83004.0,83003.0,0.0843663]
[1743884676745,0.18665935,83004.0,83003.0,0.3659263]
[1743884677045,0.18745935,83004.0,83003.0,0.47666568]
[1743884677652,0.18845935,83004.0,83003.0,0.47666568]
[1743884677855,0.18945935,83004.0,83003.0,0.47666568]
[1743884678044,0.18945935,83004.0,83003.0,0.48571515]
[1743884678445,0.21955935,83004.0,83003.0,0.48571515]
[1743884679453,0.075083,83004.0,83003.0,0.48571515]
[1743884679648,0.044983,83004.0,83003.0,0.48571515]
[1743884681367,0.044983,83004.0,83003.0,0.34115515]
[1743884681652,0.109483,83004.0,83003.0,0.34115515]
[1743884681855,0.109483,83004.0,83003.0,0.40665515]
[1743884682857,0.2178054,83004.0,83003.0,0.40665515]
[1743884685256,0.2178054,83004.0,83003.0,0.76745515]
[1743884686660,0.109483,83004.0,83003.0,0.76745515]
[1743884689854,0.078183,83004.0,83003.0,0.76745515]
[1743884690258,0.0028,83004.0,83003.0,0.76745515]
[1743884692362,0.0871653,83004.0,83003.0,0.76745515]
[1743884696056,0.0871653,83004.0,83003.0,0.81821515]
[1743884696261,0.1196653,83004.0,83003.0,0.81821515]
[1743884696455,0.1196653,83004.0,83003.0,0.76745515]
[1743884696652,0.1196653,83004.0,83003.0,0.81821515]
[1743884696860,0.1499653,83004.0,83003.0,0.81821515]
[1743884697060,0.1499653,83004.0,83003.0,0.78521515]
[1743884698762,0.1196653,83004.0,83003.0,0.78521515]
[1743884698963,0.1196653,83004.0,83003.0,0.81611515]
[1743884699658,0.1188653,83004.0,83003.0,0.81611515]
[1743884699871,0.1188653,83004.0,83003.0,0.81531515]
[1743884701268,0.1496653,83004.0,83003.0,0.81531515]
[1743884704657,0.1505453,83004.0,83003.0,0.81619515]
[1743884704873,0.1197453,83004.0,83003.0,0.81619515]
[1743884705071,0.1197453,83004.0,83003.0,0.84899515]
[1743884706172,0.1197453,83004.0,83003.0,0.81619515]
[1743884706377,0.2280677,83004.0,83003.0,0.81619515]
[1743884706577,0.2600677,83004.0,83003.0,0.75279515]
[1743884707074,0.2600677,83004.0,83003.0,0.61766885]
[1743884707264,0.2600677,83004.0,83003.0,0.70203515]
[1743884707574,0.2600677,83004.0,83003.0,0.34123515]
[1743884707966,0.2600677,83004.0,83003.0,0.25686885]
[1743884708564,0.2600677,83004.0,83003.0,0.28996885]
[1743884708967,0.2600677,83004.0,83003.0,0.37433515]
[1743884709970,0.1517453,83004.0,83003.0,0.37433515]
[1743884710978,0.1517453,83004.0,83003.0,0.40513515]
[1743884712370,0.1507453,83004.0,83003.0,0.40513515]
[1743884712570,0.1497453,83004.0,83003.0,0.40513515]
[1743884713269,0.1497453,83004.0,83003.0,0.37433515]
[1743884713965,0.1497453,83004.0,83003.0,0.40693515]
[1743884714372,0.1507453,83004.0,83003.0,0.40693515]
[1743884715981,0.1497453,83004.0,83003.0,0.40693515]
[1743884721981,0.1507453,83004.0,83003.0,0.40693515]
[1743884722685,0.1497453,83004.0,83003.0,0.40693515]
[1743884723976,0.1497453,83004.0,83003.0,0.32256885]
[1743884724181,0.1497453,83004.0,83003.0,0.28996885]
[1743884725291,0.1497453,83004.0,83003.0,0.37433515]
[1743884725475,0.1497453,83004.0,83003.0,0.40613515]
[1743884726081,0.1507453,83004.0,83003.0,0.40613515]
[1743884726880,0.1497453,83004.0,83003.0,0.40613515]
[1743884728683,0.1507453,83004.0,83003.0,0.40613515]
[1743884729588,0.1187453,83004.0,83003.0,0.40613515]
[1743884729884,0.0862453,83004.0,83003.0,0.43753515]
[1743884730384,0.00188,83004.0,83003.0,0.43753515]
[1743884730576,0.0862453,83004.0,83003.0,0.43753515]
[1743884731581,0.0852453,83004.0,83003.0,0.43753515]
[1743884732092,0.0852453,83004.0,83003.0,0.48829515]
[1743884733382,0.1168453,83004.0,83003.0,0.48829515]
[1743884733785,0.0852453,83004.0,83003.0,0.48829515]
[1743884738989,0.393,83010.0,83003.0,0.48829515]
[1743884738990,0.0421761,83017.0,83013.0,0.1265316]
[1743884739187,0.30726132,83016.0,83015.0,0.0843541]
[1743884739385,0.30726132,83016.0,83015.0,0.4151141]
[1743884739585,0.30726132,83016.0,83015.0,0.49641348]
[1743884739795,0.30726132,83016.0,83015.0,0.49525348]
[1743884740295,0.33746132,83016.0,83015.0,0.49525348]
[1743884740788,0.36966132,83016.0,83015.0,0.49525348]
[1743884741590,0.37066132,83016.0,83015.0,0.49525348]
[1743884742691,0.29828151,83016.0,83015.0,0.49525348]
[1743884744593,0.1899322,83016.0,83015.0,0.49525348]
[1743884744897,0.1583722,83016.0,83015.0,0.49633348]
[1743884751498,0.1583722,83016.0,83015.0,0.32961938]
[1743884751801,0.1900722,83016.0,83015.0,0.29801938]
[1743884751995,0.1890722,83016.0,83015.0,0.29801938]
[1743884752393,0.1890722,83016.0,83015.0,0.01801938]
[1743884752696,0.0843582,83011.0,83010.0,8e-05]
[1743884752905,0.4451582,83011.0,83010.0,0.00116]
[1743884753091,0.4760582,83011.0,83010.0,0.00116]
[1743884755103,0.4770582,83011.0,83010.0,0.00116]
[1743884756294,0.4770582,83011.0,83010.0,8e-05]
[1743884758795,0.4770582,83011.0,83010.0,0.0012]
[1743884759196,0.5093582,83011.0,83010.0,0.0012]
[1743884759500,0.5093582,83011.0,83010.0,8e-05]
[1743884760205,0.5099982,83011.0,83010.0,8e-05]
[1743884760410,0.5099982,83011.0,83010.0,0.00116]
[1743884760704,0.0859982,83011.0,83010.0,0.26116]
[1743884761190,0.1182982,83011.0,83010.0,0.26116]
[1743884761594,0.1182982,83011.0,83010.0,0.26108]
[1743884762306,0.1172982,83011.0,83010.0,0.4097392]
[1743884762607,0.1182982,83011.0,83010.0,0.4097392]
[1743884764005,0.1172982,83011.0,83010.0,0.4097392]
[1743884764403,0.1172982,83011.0,83010.0,0.32538]
[1743884764603,0.1172982,83011.0,83010.0,0.26108]
[1743884764900,0.1498982,83011.0,83010.0,0.26108]
[1743884765099,0.0843622,83007.0,83006.0,0.00018077]
[1743884765303,0.4451622,83007.0,83006.0,0.01018077]
[1743884765504,0.5096622,83007.0,83006.0,0.02696694]
[1743884766198,0.5096622,83007.0,83006.0,0.05816694]
[1743884767405,0.5106622,83007.0,83006.0,0.05816694]
[1743884769707,0.5106622,83007.0,83006.0,0.09046694]
[1743884770210,0.5114222,83007.0,83006.0,0.09122694]
[1743884772895,0.1180222,83007.0,83006.0,0.17559024]
[1743884773100,0.0861222,83007.0,83006.0,0.17559024]
[1743884774101,0.0851222,83007.0,83006.0,0.17559024]
[1743884776610,0.0851222,83007.0,83006.0,0.17659024]
[1743884778300,0.0851222,83007.0,83006.0,0.17559024]
[1743884782914,0.0851222,83007.0,83006.0,0.17659024]
[1743884783615,0.0851222,83007.0,83006.0,0.17759024]
[1743884784515,0.0851222,83007.0,83006.0,0.17659024]
[1743884784714,0.0851222,83007.0,83006.0,0.17759024]
[1743884785215,0.0851222,83007.0,83006.0,0.53839024]
[1743884789508,0.0851222,83007.0,83006.0,0.53739024]
[1743884789707,0.0843622,83007.0,83006.0,0.53839024]
[1743884790111,0.0851222,83007.0,83006.0,0.53839024]
[1743884790517,0.0851222,83007.0,83006.0,0.17759024]
[1743884790717,0.0851222,83007.0,83006.0,0.53839024]
[1743884792011,0.0851222,83007.0,83006.0,0.17759024]
[1743884792212,0.1154222,83007.0,83006.0,0.02972694]
[1743884792415,0.1480222,83007.0,83006.0,0.02972694]
[1743884794506,0.1480222,83007.0,83006.0,0.02872694]
[1743884795521,0.1490222,83007.0,83006.0,0.02772694]
[1743884798322,0.1490222,83007.0,83006.0,0.02696694]
[1743884798726,0.5098222,83007.0,83006.0,0.02696694]
[1743884803520,0.1490222,83007.0,83006.0,0.02696694]
[1743884804224,0.1490222,83007.0,83006.0,0.05796694]
[1743884804922,0.1490222,83007.0,83006.0,0.05872694]
[1743884805124,0.1490222,83007.0,83006.0,0.05796694]
[1743884806116,0.1490222,83007.0,83006.0,0.05872694]
[1743884806517,0.1490222,83007.0,83006.0,0.05796694]
[1743884806924,0.1490222,83007.0,83006.0,0.05872694]
[1743884807316,0.1490222,83007.0,83006.0,0.05796694]
[1743884809519,0.1490222,83007.0,83006.0,0.05880694]
[1743884809719,0.1490222,83007.0,83006.0,0.05796694]
[1743884809919,0.1490222,83007.0,83006.0,0.05872694]
[1743884811431,0.1490222,83007.0,83006.0,0.05796694]
[1743884811831,0.1490222,83007.0,83006.0,0.05872694]
[1743884812731,0.1490222,83007.0,83006.0,0.05796694]
[1743884812932,0.1490222,83007.0,83006.0,0.05872694]
[1743884813327,0.1490222,83007.0,83006.0,0.04796694]
[1743884813928,0.1490222,83007.0,83006.0,0.04872694]
[1743884814826,0.1490222,83007.0,83006.0,0.07866694]
[1743884815028,0.0861222,83007.0,83006.0,0.40303024]
[1743884815219,0.0861222,83007.0,83006.0,0.43683024]
[1743884815828,0.00176,83007.0,83006.0,0.43683024]
[1743884816231,0.0421806,83008.0,83007.0,0.1265422]
[1743884816435,0.0429406,83008.0,83007.0,0.38408837]
[1743884816626,0.0429406,83008.0,83007.0,0.44558837]
[1743884817335,0.1273018,83008.0,83007.0,0.44558837]
[1743884817937,0.0429406,83008.0,83007.0,0.44558837]
[1743884820037,0.00076,83008.0,83007.0,0.44558837]
[1743884820839,0.00076,83008.0,83007.0,0.80638837]
[1743884821538,0.22872732,83016.0,83015.0,0.0843541]
[1743884821739,0.22948732,83016.0,83015.0,0.4150741]
[1743884821940,0.22948732,83016.0,83015.0,0.4158341]
[1743884822342,0.22948732,83016.0,83015.0,0.49602027]
[1743884823038,0.14513322,83016.0,83015.0,0.49602027]
[1743884823444,0.22948632,83016.0,83015.0,0.49602027]
[1743884824443,0.23048632,83016.0,83015.0,0.49602027]
[1743884825134,0.0861131,83016.0,83015.0,0.49602027]
[1743884833541,0.0861131,83016.0,83015.0,0.51410027]
[1743884833738,0.0861131,83016.0,83015.0,0.49602027]
[1743884834353,0.0861131,83016.0,83015.0,0.51410027]
[1743884834845,0.0853531,83016.0,83015.0,0.51410027]
[1743884835249,0.0853531,83016.0,83015.0,0.49602027]
[1743884835451,0.0853531,83016.0,83015.0,0.51410027]
[1743884835652,0.0853531,83016.0,83015.0,0.49602027]
[1743884835851,0.0861131,83016.0,83015.0,0.49602027]
[1743884836152,0.1176131,83016.0,83015.0,0.44530027]
[1743884836348,0.1176131,83016.0,83015.0,0.49602027]
[1743884836956,0.1176131,83016.0,83015.0,0.51410027]
[1743884837252,0.1176131,83016.0,83015.0,0.49602027]
[1743884837454,0.1176131,83016.0,83015.0,0.51410027]
[1743884838057,0.1176131,83016.0,83015.0,0.49602027]
[1743884842154,0.1484131,83016.0,83015.0,0.49602027]
[1743884857363,0.1484131,83016.0,83015.0,0.36094617]
[1743884857565,0.5092131,83016.0,83015.0,0.29754617]
[1743884857864,0.0843551,83014.0,83013.0,8e-05]
[1743884858163,0.0843561,83013.0,83012.0,0.28810095]
[1743884858473,0.1788161,83013.0,83012.0,0.28882095]
[1743884858967,0.3788161,83013.0,83012.0,0.28882095]
[1743884859157,0.3788161,83013.0,83012.0,0.00072]
[1743884859357,0.0843582,83011.0,83010.0,8e-05]
[1743884859655,0.0851182,83011.0,83010.0,0.00072]
[1743884859851,0.1492182,83011.0,83010.0,0.00072]
[1743884862970,0.5100182,83011.0,83010.0,0.00072]
[1743884863969,0.5100182,83011.0,83010.0,8e-05]
[1743884865869,0.5100182,83011.0,83010.0,0.01008]
[1743884868858,0.5100182,83011.0,83010.0,0.0108]
[1743884870165,0.5100182,83011.0,83010.0,0.02776089]
[1743884871378,0.1492182,83011.0,83010.0,0.02776089]
[1743884871577,0.5100182,83011.0,83010.0,0.02776089]
[1743884873677,0.1492182,83011.0,83010.0,0.02776089]
[1743884873879,0.5100182,83011.0,83010.0,0.02776089]
[1743884884582,0.5100182,83011.0,83010.0,0.09106089]
[1743884890190,0.5100182,83011.0,83010.0,0.09098089]
[1743884892185,0.5100182,83011.0,83010.0,0.17534009]
[1743884892488,0.4459182,83011.0,83010.0,0.17534009]
[1743884895795,0.0421778,83014.0,83013.0,0.0843561]
[1743884896000,0.0429378,83014.0,83013.0,0.3751161]
[1743884896190,0.0429378,83014.0,83013.0,0.4258361]
[1743884896503,0.0429378,83014.0,83013.0,0.53729699]
[1743884897002,0.0439378,83014.0,83013.0,0.53729699]
[1743884900602,0.0853551,83014.0,83013.0,0.53729699]
[1743884901191,0.001,83014.0,83013.0,0.53729699]
[1743884902403,0.0853551,83014.0,83013.0,0.53729699]
[1743884903697,0.1173551,83014.0,83013.0,0.53729699]
[1743884903897,0.1181151,83014.0,83013.0,0.53729699]
[1743884904396,0.1173551,83014.0,83013.0,0.53729699]
[1743884913401,0.0853551,83014.0,83013.0,0.53729699]
[1743884914904,0.0853551,83014.0,83013.0,0.53739057]
[1743884916711,0.1183551,83014.0,83013.0,0.53739057]
[1743884920407,0.1183551,83014.0,83013.0,0.48667057]
[1743884920602,0.1191551,83014.0,83013.0,0.53739057]
[1743884920804,0.1183551,83014.0,83013.0,0.53739057]
[1743884921405,0.1183551,83014.0,83013.0,0.75307833]
[1743884922006,0.001,83014.0,83013.0,0.75307833]
[1743884924407,0.0853551,83014.0,83013.0,0.75307833]
[1743884924810,0.0853551,83014.0,83013.0,0.53739057]
[1743884927118,0.001,83014.0,83013.0,0.53739057]
[1743884927318,0.0853551,83014.0,83013.0,0.53739057]
[1743884927614,0.1004,83020.0,83019.0,0.08435]
[1743884927814,0.1012,83020.0,83019.0,0.73591]
[1743884928015,0.1012,83020.0,83019.0,0.79841]
[1743884928320,0.1012,83020.0,83019.0,0.81546447]
[1743884928922,0.1022,83020.0,83019.0,0.81546447]
[1743884929609,0.186549,83020.0,83019.0,0.81546447]
[1743884930419,0.1022,83020.0,83019.0,0.81546447]
[1743884932109,0.186549,83020.0,83019.0,0.81546447]
[1743884932514,0.186549,83020.0,83019.0,1.10313728]
[1743884933020,0.186549,83020.0,83019.0,1.12121728]
[1743884933221,0.186549,83020.0,83019.0,1.10313728]
[1743884933418,0.186549,83020.0,83019.0,1.12121728]
[1743884936617,0.186549,83020.0,83019.0,0.83354447]
[1743884938628,0.1022,83020.0,83019.0,0.83354447]
[1743884938820,0.186549,83020.0,83019.0,0.83354447]
[1743884939227,0.1022,83020.0,83019.0,0.83354447]
[1743884939627,1.0,83025.0,83024.0,0.084345]
[1743884939829,1.001,83025.0,83024.0,0.355345]
[1743884940125,1.001,83025.0,83024.0,0.416645]
[1743884940724,1.001,83025.0,83024.0,0.43369947]
[1743884942823,1.0338,83025.0,83024.0,0.43369947]
[1743884948924,1.001,83025.0,83024.0,0.43369947]
[1743884950131,1.1176439,83025.0,83024.0,0.43369947]
[1743884950326,1.1495439,83025.0,83024.0,0.48437947]
[1743884952851,1.1495439,83025.0,83024.0,0.50245947]
[1743884953638,1.0652,83025.0,83024.0,0.50245947]
[1743884955355,1.1495439,83025.0,83024.0,0.50245947]
[1743884960047,1.1495439,83025.0,83024.0,0.47155947]
[1743884964545,1.1495439,83025.0,83024.0,0.83235947]
[1743884965245,1.1495439,83025.0,83024.0,0.47155947]
[1743884965550,1.1495439,83025.0,83024.0,0.83235947]
[1743884967063,1.1495439,83025.0,83024.0,1.06959468]
[1743884967264,1.1495439,83025.0,83024.0,1.12027468]
[1743884968055,1.1495439,83025.0,83024.0,1.15117468]
[1743884968254,1.1172439,83025.0,83024.0,1.15117468]
[1743884968562,1.0853439,83025.0,83024.0,1.18567468]
[1743884969059,1.1174439,83025.0,83024.0,1.18567468]